[Event "Czech Open-GM 2022"]
[Site "Pardubice"]
[Date "2022.07.27"]
[Round "6.41"]
[White "Mondrzycki, Bartlomiej"]
[Black "Finek, Vaclav"]
[Result "0-1"]
[ECO "A48"]
[WhiteElo "2180"]
[BlackElo "2393"]
[Annotator "TA"]
[PlyCount "98"]
[EventDate "2022.07.22"]
[EventType "swiss"]
[EventCountry "CZE"]
[SourceTitle "playchess.com"]
[Source "ChessBase"]
[SourceQuality "1"]
[TimeControl "40/5400+30:1800+30"]

{[%evp 18,98,0,-10,15,12,20,0,0,-19,37,7,7,8,15,12,9,13,4,13,14,18,22,19,18,14,35,0,0,14,6,12,22,14,17,6,0,0,0,0,0,0,0,-20,-20,-98,-84,-84,-84,-87,-84,-124,-84,-84,-84,-84,-84,-185,-36,-284,-132,-352,-339,-398,-295,-380,-380,-359,-356,-619,-609,-844,-837,-821,-808,-958,-935,-1004,-1002,-1771,-1886,-29975,-824]} 1. d4 {[%emt 0:00:00]} Nf6 {[%emt 0:00:00]} 2. Nf3 {[%emt 0:00:00]} g6 {[%emt 0:00:00]} 3. Bg5 {[%emt 0:00:00]} Bg7 {[%emt 0:00:29]} 4. Nbd2 {[%emt 0:00:00]} O-O {[%emt 0:00:27]} 5. c3 {[%emt 0:00:11]} d6 {[%emt 0:00:33]} 6. e4 {[%emt 0:00:32]} c5 {[%emt 0:01:10]} 7. dxc5 {[%emt 0:00:27]} dxc5 {[%emt 0:00:12]} 8. Be2 {[%emt 0:03:20]} Nc6 9. O-O {[%emt 0:02:10]} Qc7 {[%emt 0:03:51]} 10. Qc2 {[%emt 0:00:24]} Nh5 {[%emt 0:02:54] A48: 1 d4 Nf6 2 Nf3 g6: Torre, London and Colle Systems.} 11. Nc4 {[%emt 0:03:10] [#]} b6 $146 {[%emt 0:04:18]} ({Predecessor:} 11... Nf4 12. Ne3 Be6 13. Bxf4 Qxf4 14. g3 Qb8 15. Nd5 Bg4 16. Rfd1 Rd8 17. Ne3 Bd7 18. Rd5 {0-1 (38) Vlahov,D (2275)-Sale,S (2445) Makarska 1994}) 12. Ne3 {[%emt 0:06:49]} e6 {[%emt 0:00:21] Prevents Nd5. The position is equal.} 13. Rad1 {[%emt 0:21:55]} Nf4 {[%emt 0:02:21]} (13... h6 $11 14. Bh4 Bb7) 14. Bxf4 (14. Bb5 {with more complications.} Bb7 15. Qd2 a6 16. Bxc6 Bxc6 17. Nc4) 14... Qxf4 {[%emt 0:00:06]} 15. Nd2 {[%emt 0:15:22]} Bb7 {[%emt 0:04:13]} ({Don't take} 15... Be5 16. g3 Qf6 17. f4 $18) 16. g3 {[%emt 0:01:18]} Qc7 {[%emt 0:01:48]} 17. f4 Ne7 18. Bf3 {[%emt 0:14:31]} Rfd8 {[%emt 0:09:19]} 19. e5 {[%emt 0:05:34]} Bxf3 {[%emt 0:14:16]} 20. Nxf3 {[%emt 0:00:55]} b5 {[%emt 0:02:00]} 21. c4 {[%emt 0:02:43]} bxc4 {[%emt 0:02:20]} 22. Qxc4 {[%emt 0:04:07]} Rxd1 {[%emt 0:04:31]} 23. Rxd1 {[%emt 0:00:03]} Qb7 {[%emt 0:00:54][%csl LRb2,LRf3]} 24. Qe2 {[%emt 0:00:04]} Nf5 {[%emt 0:05:06]} 25. Nxf5 {[%emt 0:00:22]} gxf5 {[%emt 0:00:05]} 26. Rd3 {[%emt 0:03:18]} Bf8 {[%emt 0:04:41]} 27. Kg2 {[%emt 0:00:15]} Rc8 {[%emt 0:04:38]} 28. Qd2 {[%emt 0:02:34]} c4 {[%emt 0:08:35]} 29. Rd7 {[%emt 0:00:16]} Qe4 {[%emt 0:00:10]} 30. Rd4 {[%emt 0:00:53]} Qb1 {[%emt 0:01:10]} 31. Qe2 {[%emt 0:06:32]} (31. Rd7 $11) 31... Rb8 {[%emt 0:07:14]} 32. Rd2 {[%emt 0:03:50]} Qxa2 {[%emt 0:03:20] Black is more active.} 33. Kh3 {[%emt 0:00:36] Ng5 is the strong threat.} h6 {[%emt 0:01:09] Against Ng5} 34. Rc2 {[%emt 0:00:02]} Qb1 {[%emt 0:01:46]} 35. Nd4 {[%emt 0:03:27]} a5 $1 {[%emt 0:03:57][%cal Ba7a5,Ba5a4][%mdl 32]} 36. Nc6 {[%emt 0:00:42]} Rb5 {[%emt 0:00:36]} 37. Nd4 {[%emt 0:00:32]} (37. Na7 $17 Rc5 38. Rxc4) 37... Rb6 {[%emt 0:00:26]} (37... Rb7 $19 {Hoping for ...a4.} 38. Rd2 c3 39. bxc3 a4) 38. Nf3 $2 {[%emt 0:01:40]} (38. b3 $1 $15) 38... Rb4 {[%emt 0:01:55]} (38... c3 $19 {is more deadly.} 39. bxc3 a4) 39. Kh4 $2 {[%emt 0:00:25] This costs White the game.} (39. Nd4 $17 {keeps fighting.}) 39... a4 $19 {[%emt 0:02:30]} 40. Nd4 {[%emt 0:00:27]} Rb6 {[%emt 0:02:22]} 41. g4 {[%emt 0:05:54]} Be7+ {[%emt 0:10:35]} 42. Kh5 {[%emt 0:11:55]} Qg1 $1 {[%emt 0:01:31]} 43. gxf5 $2 {[%emt 0:03:26]} (43. Rxc4 Rxb2 $3 {[%mdl 512]} 44. Rc8+ Kh7 $19) (43. Rd2 Qxg4+ 44. Qxg4+ fxg4 45. Ne2) 43... Qxd4 {[%emt 0:03:59]} 44. Qg4+ {[%emt 0:03:24] [#]} Kf8 $1 {[%emt 0:01:44] ( -> ...exf5)} 45. Rg2 {[%emt 0:04:56]} Ke8 {[%emt 0:00:54]} 46. f6 {[%emt 0:00:03]} Bf8 {[%emt 0:01:57]} 47. Qf3 {[%emt 0:00:13]} Qd5 {[%emt 0:01:09]} 48. Qf2 {[%emt 0:01:12]} Rb3 {[%emt 0:00:35]} 49. Rg8 {[%emt 0:00:39]} Qf3+ {[%emt 0:01:34] Weighted Error Value: White=0.71/Black=0.16 (very precise)} (49... Rh3+ $142 50. Kg4 Qd3 51. f5 exf5+ 52. Qxf5 {[#]} Rh4+ $3 {[%mdl 512]} 53. Kxh4 Qxf5 54. Rg4 Qxe5 55. Rg3 Qxb2 56. Re3+ Kd7 57. Kg4 a3 58. Kf3 Qxf6+ 59. Kg2 a2 60. Re1 Qg5+ 61. Kf3 Qf5+ 62. Ke2 Qg4+ 63. Kd2 Bb4+ 64. Ke3 Bxe1 65. h3 Qf5 66. h4 a1=Q 67. Ke2 Qf2#) 0-1

[Event "Czech Open-GM 2022"]
[Site "Pardubice"]
[Date "2022.07.27"]
[Round "6.42"]
[White "Czerw, Dawid"]
[Black "Winter, Ondrej"]
[Result "1-0"]
[ECO "B10"]
[WhiteElo "2391"]
[BlackElo "2168"]
[Annotator "TA"]
[PlyCount "71"]
[EventDate "2022.07.22"]
[EventType "swiss"]
[EventCountry "CZE"]
[SourceTitle "playchess.com"]
[Source "ChessBase"]
[SourceQuality "1"]
[TimeControl "40/5400+30:1800+30"]

{[%evp 11,71,-51,14,23,17,19,26,16,16,19,18,24,26,17,45,38,46,40,44,0,0,0,29,26,20,27,31,24,46,64,91,52,68,69,109,109,109,109,109,109,133,115,202,196,303,303,404,314,435,435,420,405,490,394,413,406,704,705,644,656,1318,1033]} 1. e4 {[%emt 0:00:03]} c6 {[%emt 0:00:10]} 2. Nc3 {[%emt 0:01:52]} d5 {[%emt 0:00:06]} 3. Qf3 {[%emt 0:00:04]} dxe4 {[%emt 0:12:05]} 4. Nxe4 {[%emt 0:00:42]} Nd7 {[%emt 0:03:58]} 5. d4 {[%emt 0:00:07]} Ngf6 {[%emt 0:01:32]} 6. Bc4 {[%emt 0:00:06]} e6 {[%emt 0:01:16] 6...Nb6 is the hot move.} (6... Nb6 $1 $15 7. Bd3 (7. Bxf7+ $2 Kxf7 8. Ne2 Qd5 $19) 7... Qxd4) 7. Ne2 {[%emt 0:00:14] B11: Caro-Kann: Two Knights Variation.} Nxe4 {[%emt 0:04:45]} 8. Qxe4 {[%emt 0:00:06]} Nf6 {[%emt 0:01:17]} 9. Qf3 {[%emt 0:00:05] White has an edge.} Qc7 {[%emt 0:04:19]} 10. Bf4 {[%emt 0:09:09]} Bd6 {[%emt 0:13:19] [#]} 11. Bxd6 $146 {[%emt 0:01:10]} ({Predecessor:} 11. O-O O-O 12. Rad1 Nd5 13. Bxd6 Qxd6 14. Ng3 Nf6 15. Nh5 Nxh5 16. Qxh5 g6 17. Qe5 Rd8 18. c3 b6 19. Rfe1 Bb7 20. Bb3 {½-½ (20) Cabanas Jimenez,M (1993)-Davicce Canada,J (2056) Galapagar 2006}) 11... Qxd6 {[%emt 0:00:10]} 12. O-O-O {[%emt 0:00:08]} b6 {[%emt 0:06:53]} 13. g4 {[%emt 0:01:54][%cal Bg2g4,Bg4g5][%mdl 32]} Bb7 {[%emt 0:04:38]} 14. g5 {[%emt 0:01:50]} Nd5 {[%emt 0:03:12]} 15. Bxd5 {[%emt 0:00:13]} Qxd5 {[%emt 0:05:22]} 16. Qxd5 {[%emt 0:00:26]} cxd5 {[%emt 0:05:34]} 17. Nf4 {[%emt 0:00:50]} Kd7 {[%emt 0:04:15]} 18. h4 {[%emt 0:03:40][%cal Bh2h4,Bh4h5,Bh5h6][%mdl 32]} Rac8 {[%emt 0:07:15]} 19. Rde1 {[%emt 0:03:34]} Rc4 {[%emt 0:02:14]} (19... Kd6 {is interesting.} 20. h5 h6 21. Rhg1 hxg5 22. Rxg5 Rh7) 20. c3 {[%emt 0:00:23]} a5 {[%emt 0:01:59]} 21. a3 {[%emt 0:00:56]} Ba6 {[%emt 0:03:11]} 22. h5 {[%emt 0:02:14]} Rc6 {[%emt 0:08:46]} 23. h6 {[%emt 0:00:56]} g6 {[%emt 0:00:39]} 24. Rh3 {[%emt 0:00:26]} Rhc8 {[%emt 0:01:47]} 25. Rf3 {[%emt 0:00:49][%cal Of4d5] Strongly threatening Nxd5!} R8c7 {[%emt 0:01:11]} 26. Kd2 {[%emt 0:00:27] White is more active.} Kd8 {[%emt 0:01:33] [#]} (26... Kd6 $16) 27. Ng2 $1 $18 {[%emt 0:02:24]} Bc4 {[%emt 0:01:39]} (27... Kc8 {was called for.} 28. Ne3 Rd6) 28. Ne3 {[%emt 0:00:43]} b5 {[%emt 0:00:06]} 29. Ng4 {[%emt 0:01:17]} b4 {[%emt 0:00:39]} 30. axb4 {[%emt 0:01:31]} axb4 {[%emt 0:00:04]} 31. Nf6 {[%emt 0:00:56]} bxc3+ {[%emt 0:00:42]} 32. bxc3 {[%emt 0:00:35]} Ra6 {[%emt 0:01:07]} 33. Nxh7 {[%emt 0:01:32] [#] Black must now prevent Nf6.} Ra2+ {[%emt 0:00:20]} (33... Ke7 $142 34. Nf6 Ra8) 34. Ke3 {[%emt 0:01:10] White is clearly winning.} Ke7 {[%emt 0:00:23]} 35. Nf6 {[%emt 0:00:26] Threatens to win with h7.} Kf8 {[%emt 0:00:03]} 36. h7 {[%emt 0:00:47] Weighted Error Value: White=0.07 (flawless) /Black=0.32} 1-0

[Event "Czech Open-GM 2022"]
[Site "Pardubice"]
[Date "2022.07.27"]
[Round "6.43"]
[White "Stauskas, Lukas"]
[Black "Hajiyev, Kanan"]
[Result "1-0"]
[ECO "A12"]
[WhiteElo "2348"]
[BlackElo "2142"]
[Annotator "TA"]
[PlyCount "133"]
[EventDate "2022.07.22"]
[EventType "swiss"]
[EventCountry "CZE"]
[SourceTitle "playchess.com"]
[Source "ChessBase"]
[SourceQuality "1"]
[TimeControl "40/5400+30:1800+30"]

{[%evp 20,133,11,12,12,9,12,9,14,27,22,23,18,19,30,23,35,35,52,-20,-27,-29,-27,-27,-14,-16,-25,-47,-33,-46,-45,-43,-40,-72,-47,-47,-47,-45,-39,-56,-45,-140,-105,-123,-108,-86,-99,-99,45,41,47,35,24,27,27,0,10,0,0,0,5,0,0,0,0,0,0,-15,-30,-54,0,-58,-73,-70,-43,-48,-56,-61,-58,-130,-132,-150,-166,-551,-550,-775,-14,-16,-14,-46,-8,-8,0,0,0,0,0,0,0,0,0,0,0,0,29981,29982,29982,29983,29983,29984,29995,29996,29997,29998,29998,29997]} 1. b3 {[%emt 0:00:03]} d5 {[%emt 0:03:02]} 2. Bb2 {[%emt 0:00:10]} Nf6 {[%emt 0:00:10]} 3. Nf3 {[%emt 0:00:31]} g6 {[%emt 0:00:14]} 4. c4 {[%emt 0:01:49]} c6 {[%emt 0:00:09]} 5. g3 {[%emt 0:05:24]} Bg7 {[%emt 0:00:02]} 6. Bg2 {[%emt 0:00:09]} O-O {[%emt 0:00:02]} 7. O-O {[%emt 0:01:25]} Bg4 {[%emt 0:02:54]} 8. d3 {[%emt 0:03:40]} Nbd7 {[%emt 0:00:23]} 9. Nbd2 {[%emt 0:01:57]} Re8 {[%emt 0:00:16]} 10. h3 {[%emt 0:01:08]} Bxf3 {[%emt 0:00:12]} 11. Bxf3 {[%emt 0:02:50]} e5 {[%emt 0:11:17] A11: English Opening: 1...c6.} 12. cxd5 {[%emt 0:05:47]} Nxd5 {[%emt 0:03:23][%cal Oe5e4]} 13. Qc2 {[%emt 0:05:30] [#]} Nf8 $146 {[%emt 0:03:40] The position is equal.} ({Predecessor:} 13... N7b6 14. a3 h5 15. h4 Nc7 16. Kg2 Ne6 17. e3 Qe7 18. Rad1 Rad8 19. b4 f5 {½-½ (34) Baerwinkel,T (2345)-Kargoll,P (2201) Germany 2012}) 14. a3 {[%emt 0:01:57]} Qd7 {[%emt 0:05:27]} 15. Bg2 {[%emt 0:00:42]} Ne6 {[%emt 0:00:28]} 16. e3 {[%emt 0:00:57]} Rad8 {[%emt 0:00:09]} 17. Nc4 {[%emt 0:04:57]} Nec7 {[%emt 0:07:11]} 18. Rad1 {[%emt 0:15:26]} f5 {[%emt 0:02:16]} 19. d4 {[%emt 0:16:54]} (19. e4 $14) 19... e4 $1 $11 {[%emt 0:00:22]} 20. Ne5 {[%emt 0:01:50]} Qe7 {[%emt 0:05:02]} 21. b4 {[%emt 0:01:11]} Ne6 {[%emt 0:03:31]} 22. Qb3 {[%emt 0:01:12]} a6 {[%emt 0:01:05]} 23. Rb1 {[%emt 0:01:11]} Ng5 {[%emt 0:00:50][%cal Rg7e5]} 24. Nc4 {[%emt 0:02:07]} h5 {[%emt 0:10:25][%cal Oh5h4]} 25. h4 Nf7 {[%emt 0:00:25] Pair of Knights!} 26. Qd1 {[%emt 0:07:36]} Bf6 {[%emt 0:01:31]} 27. Qe2 {[%emt 0:01:12]} Kg7 {[%emt 0:00:10]} 28. a4 {[%emt 0:02:09]} Qxb4 {[%emt 0:05:06]} 29. Ba1 {[%emt 0:02:15]} Qe7 {[%emt 0:02:50]} 30. Na5 {[%emt 0:01:23]} (30. Rfc1 $15) 30... Rd7 {[%emt 0:00:30]} 31. Rb3 {[%emt 0:00:42]} Rh8 {[%emt 0:02:57]} 32. Rfb1 {[%emt 0:00:29][%cal Ra5b7]} Nd8 {[%emt 0:00:18]} 33. Nc4 {[%emt 0:01:35]} g5 {[%emt 0:05:31]} (33... b5 $1 $17 {[%cal Rb5c4]} 34. Ne5 Bxe5 35. dxe5 Ne6 36. axb5 axb5) 34. hxg5 $14 {[%emt 0:00:07]} Bxg5 {[%emt 0:00:09]} 35. f3 {[%emt 0:01:30]} h4 {[%emt 0:11:08]} 36. fxe4 {[%emt 0:00:26]} fxe4 {[%emt 0:00:20]} (36... h3 37. exd5 hxg2 38. Qxg2 $16) 37. Qg4 {[%emt 0:02:33]} (37. Ne5 $5 {[%cal Rb1f1]}) 37... hxg3 {[%emt 0:01:04]} 38. Rf1 {[%emt 0:01:49]} Rh4 {[%emt 0:04:15]} (38... b5 $2 39. Nb6 $1 (39. Ne5 Rc7 $18) 39... Rh4 40. Qxd7 $16) 39. Qxg3 {[%emt 0:00:26] next Rf5 is good for White. Dancing on a razor blade.} Nf7 {[%emt 0:01:26]} 40. Ne5 {[%emt 0:05:36]} Nxe5 {[%emt 0:00:29]} 41. dxe5 {[%emt 0:30:08]} Kh6 {[%emt 0:31:23]} (41... Kg6 $5 42. Bh3 (42. Qf2 $2 Qe6 $19) 42... Rd8 $11) 42. Rf5 {[%emt 0:00:00][%cal Oe5e6] aiming for e6!} Qg7 $36 {[%emt 0:00:00][%mdl 2048] ...Qg6 is the strong threat. Black fights for an advantage.} 43. Bd4 {[%emt 0:00:00] And now e6 would win.} Qg6 {[%emt 0:00:00]} 44. Rf8 {[%emt 0:00:00]} b5 {[%emt 0:00:35]} ({Better is} 44... Rh7 $15 45. e6 Qxe6) 45. Rh8+ {[%emt 0:00:00]} ({White should play} 45. Rb2 $11) 45... Rh7 $15 {[%emt 0:00:07]} 46. Rxh7+ {[%emt 0:00:00]} Kxh7 {[%emt 0:00:37]} 47. axb5 {[%emt 0:00:00]} axb5 {[%emt 0:00:10]} 48. Ra3 {[%emt 0:00:00]} Be7 {[%emt 0:00:27][%csl LRa3,LRg3]} 49. Qf2 {[%emt 0:00:00]} (49. Qxg6+ $15 Kxg6 50. Ra6) 49... Rg4 $1 $17 {[%emt 0:03:12]} 50. Ra7 {[%emt 0:00:00]} Kh6 {[%emt 0:00:12]} 51. Kh2 $2 {[%emt 0:00:00]} (51. Ra8 {is tougher.}) 51... c5 $1 $19 {[%emt 0:01:01]} 52. Bb2 {[%emt 0:00:45] [#]} c4 $2 {[%emt 0:05:06]} (52... Nxe3 $1 $19 {[%cal Rg4g2][%mdl 512]} 53. Bh3 {[#]} (53. Qxe3+ Bg5) 53... Rh4 $1 54. Qxe3+ Bg5) 53. Bh3 $11 {[%emt 0:01:23]} Rh4 {[%emt 0:00:25][%cal Od5e3] Threatens to win with ...Nxe3!} 54. Ra8 {[%emt 0:01:31] Strongly threatening Rh8+.} c3 {[%emt 0:00:54]} (54... Kh7 $5 {[%cal Rb5b4]} 55. Qg3 Rh6 $17) 55. Bxc3 {[%emt 0:03:49]} Nxc3 {[%emt 0:02:10]} 56. Rh8+ {[%emt 0:00:06]} Kg7 {[%emt 0:00:02]} 57. Rxh4 {[%emt 0:00:10]} Bxh4 {[%emt 0:00:05]} 58. Qxh4 {[%emt 0:00:06][%mdl 4096] Endgame KQB-KQN} Nd5 {[%emt 0:00:20]} 59. e6 {[%emt 0:01:41]} Nxe3 {[%emt 0:01:29]} 60. Qe7+ {[%emt 0:00:19]} Kh6 {[%emt 0:00:32]} 61. Qf8+ {[%emt 0:00:37]} Kh5 $2 {[%emt 0:00:02][%mdl 8192]} (61... Kh7 $11) 62. e7 {[%emt 0:01:14] White mates.} Qd6+ {[%emt 0:00:20]} 63. Kh1 {[%emt 0:00:16]} Qd1+ {[%emt 0:00:58] [#]} 64. Bf1 $1 {[%emt 0:00:05][%mdl 576] Promotion} Nxf1 {[%emt 0:00:58]} (64... Qxf1+ 65. Qxf1) 65. e8=Q+ {[%emt 0:00:08]} Kh4 {[%emt 0:00:23]} 66. Qxe4+ {[%emt 0:00:28]} Kh3 {[%emt 0:00:33]} 67. Qg2+ {[%emt 0:00:08] White used his chance.  Weighted Error Value: White=0.24 (precise) /Black=0.20 (precise)} 1-0

[Event "Czech Open-GM 2022"]
[Site "Pardubice"]
[Date "2022.07.27"]
[Round "6.44"]
[White "Claridge-Hansen, William"]
[Black "Michelle Catherina, P."]
[Result "1-0"]
[ECO "A37"]
[WhiteElo "2345"]
[BlackElo "2141"]
[Annotator "TA"]
[PlyCount "71"]
[EventDate "2022.07.22"]
[EventType "swiss"]
[EventCountry "CZE"]
[SourceTitle "playchess.com"]
[Source "ChessBase"]
[SourceQuality "1"]
[TimeControl "40/5400+30:1800+30"]

{[%evp 19,71,0,16,16,25,22,19,0,0,0,35,0,19,0,31,23,20,20,22,20,30,22,23,4,29,16,28,20,151,150,150,150,141,139,145,147,120,43,143,149,548,521,1207,655,752,661,29982,29983,29983,29984,29981,29982,29990,29991]} 1. c4 {[%emt 0:00:03]} c5 {[%emt 0:02:54]} 2. g3 {[%emt 0:00:41]} g6 {[%emt 0:00:19]} 3. Bg2 {[%emt 0:00:20]} Bg7 {[%emt 0:00:05]} 4. Nc3 {[%emt 0:00:11]} Nc6 {[%emt 0:00:17]} 5. Nf3 {[%emt 0:00:30]} d6 {[%emt 0:00:32]} 6. O-O {[%emt 0:00:21]} e5 {[%emt 0:00:13]} 7. a3 {[%emt 0:01:16]} a5 {[%emt 0:00:29]} 8. d3 {[%emt 0:04:16]} Nge7 {[%emt 0:00:23]} 9. Rb1 {[%emt 0:10:22]} O-O {[%emt 0:00:50]} 10. Bd2 {[%emt 0:03:44]} f5 {[%emt 0:03:50]} 11. Qc1 {[%emt 0:06:25] A37: Symmetrical English vs ...g6: 4 Bg2 Bg7 5 Nf3.} Kh8 {[%emt 0:05:34]} 12. Nb5 {[%emt 0:05:37]} Be6 {[%emt 0:09:28] [#]} 13. b4 $146 {[%emt 0:02:13] The position is equal.} ({Predecessor:} 13. Bh6 Rc8 14. Re1 Qd7 15. Bxg7+ Kxg7 16. Ng5 Bg8 17. f4 h6 18. Nf3 Kh7 19. Qc3 {0-1 (26) Ulienkov,V (1927)-Kuznetsov,R (2181) Bratsk 2015}) 13... axb4 {[%emt 0:02:50]} 14. axb4 {[%emt 0:00:07]} b6 {[%emt 0:06:09]} 15. Ne1 {[%emt 0:04:25]} Qd7 {[%emt 0:05:27]} 16. Nc2 {[%emt 0:04:16]} Ra2 {[%emt 0:16:28]} 17. Nc3 {[%emt 0:02:14]} Ra7 {[%emt 0:01:54]} 18. Nd5 $36 {[%emt 0:01:37][%mdl 2048] White has some pressure.} Bxd5 {[%emt 0:03:32]} 19. cxd5 {[%emt 0:00:29]} Nd4 {[%emt 0:00:38]} 20. Nxd4 {[%emt 0:01:12]} cxd4 {[%emt 0:00:58]} 21. b5 {[%emt 0:05:16]} Rc7 {[%emt 0:04:51]} 22. Qa3 {[%emt 0:04:46]} Rc2 {[%emt 0:04:41]} 23. Bb4 {[%emt 0:04:07]} Nc8 {[%emt 0:00:28]} (23... Rd8 $11) 24. Rfc1 {[%emt 0:09:08]} Rxc1+ {[%emt 0:06:08]} 25. Rxc1 {[%emt 0:00:24]} Qxb5 {[%emt 0:06:23]} 26. Bxd6 {[%emt 0:00:50]} Nxd6 {[%emt 0:01:46]} 27. Qxd6 {[%emt 0:00:08]} e4 {[%emt 0:01:03] [#]} 28. Qe6 {[%emt 0:06:06]} ({And not} 28. dxe4 fxe4 29. Qe6 Qxe2 30. Qxe4 Qxf2+ 31. Kh1 Qe3 $15) ({Better is} 28. Rc7 $1 $16) 28... exd3 {[%emt 0:07:26]} (28... Qb2 $1 $14 29. Rc8 Qxe2) 29. exd3 $16 {[%emt 0:00:09]} f4 $2 {[%emt 0:01:00][%mdl 8192] Loses the game.} (29... Qe8 $16 30. Qxb6 f4) 30. Rc8 $18 {[%emt 0:03:44] And now d6 would win.} fxg3 {[%emt 0:05:45]} 31. hxg3 {[%emt 0:00:19]} Qb1+ {[%emt 0:01:55]} 32. Kh2 {[%emt 0:01:59] [#] White threatens d6 and mate.} Qa2 {[%emt 0:00:09]} 33. Rxf8+ {[%emt 0:00:35] White mates.} Bxf8 {[%emt 0:00:01]} 34. Qe5+ {[%emt 0:01:00]} Kg8 {[%emt 0:00:02]} 35. d6 {[%emt 0:00:26][%cal Bd5d6,Bd6d7][%mdl 32]} Qxf2 {[%emt 0:00:27]} 36. d7 {[%emt 0:00:12] Weighted Error Value: White=0.28 (precise) /Black=0.66} 1-0

[Event "Czech Open-GM 2022"]
[Site "Pardubice"]
[Date "2022.07.28"]
[Round "7.1"]
[White "Donchenko, Alexander"]
[Black "Moksh Amit Doshi"]
[Result "1/2-1/2"]
[ECO "A29"]
[WhiteElo "2640"]
[BlackElo "2409"]
[Annotator "TA"]
[PlyCount "64"]
[EventDate "2022.07.22"]
[EventType "swiss"]
[EventCountry "CZE"]
[SourceTitle "playchess.com"]
[Source "ChessBase"]
[SourceQuality "1"]
[TimeControl "40/5400+30:1800+30"]

{[%evp 10,64,0,0,13,0,27,16,16,-14,11,8,-4,0,21,7,8,5,9,18,23,14,9,10,5,0,6,0,33,25,25,25,18,25,30,0,0,0,1,0,0,0,0,0,0,0,0,0,11,9,26,0,13,14,14,0,0]} 1. c4 {[%emt 0:00:02]} Nf6 {[%emt 0:06:20]} 2. Nc3 {[%emt 0:00:11]} e5 {[%emt 0:00:11]} 3. Nf3 {[%emt 0:00:07]} Nc6 {[%emt 0:00:06]} 4. g3 {[%emt 0:00:07]} d5 {[%emt 0:01:22]} 5. cxd5 {[%emt 0:00:08]} Nxd5 {[%emt 0:00:05]} 6. Bg2 {[%emt 0:00:07][%cal Of3e5]} Bc5 {[%emt 0:00:40] A29: English Opening: Four Knights Variation with 4 g3.} 7. O-O {[%emt 0:00:17][%cal Of3e5]} O-O {[%emt 0:00:07]} 8. Nxd5 {[%emt 0:00:19]} Qxd5 {[%emt 0:00:08]} 9. d3 {[%emt 0:00:05]} (9. Ng5 $5 {[%cal Rg2d5]} Qc4 10. d3 $11) 9... h6 {[%emt 0:11:47]} 10. Bd2 {[%emt 0:00:59]} Qd6 {[%emt 0:07:41]} 11. a3 {[%emt 0:05:18]} a5 {[%emt 0:03:03] Against b4} 12. Bc3 {[%emt 0:05:22][%cal Of3e5] [#]} Rd8 $146 {[%emt 0:06:27]} ({Predecessor:} 12... Qe7 13. Nd2 a4 14. Rc1 Rd8 15. Qc2 Qe8 16. e3 Bf5 17. Be4 Bxe4 18. dxe4 b6 {0-1 (62) Gudmundsson,E (2497)-Pessoa,F (2503) ICCF email 2018}) 13. Nd2 {[%emt 0:01:50]} Be6 {[%emt 0:11:19]} 14. Ne4 {[%emt 0:12:51]} Qe7 {[%emt 0:00:28]} 15. Nxc5 {[%emt 0:00:27]} Qxc5 {[%emt 0:00:06]} 16. Rc1 {[%emt 0:02:05]} Qd6 {[%emt 0:01:51]} 17. f4 {[%emt 0:08:42]} exf4 {[%emt 0:07:38]} 18. Rxf4 {[%emt 0:04:31]} Bd5 {[%emt 0:01:45]} 19. e4 {[%emt 0:03:47]} Be6 {[%emt 0:03:43]} 20. d4 $1 {[%emt 0:01:02][%cal Bd3d4,Bd4d5][%mdl 32] [#] aiming for d5.} f6 {[%emt 0:03:42][%cal Rc6d4]} (20... Nxd4 $2 21. e5 Qe7 22. Rxd4 $18) 21. d5 {[%emt 0:01:33] Hoping for Qc2.} Ne5 {[%emt 0:04:50]} 22. Bd4 {[%emt 0:14:10]} c6 {[%emt 0:06:45][%cal Rc6d5]} 23. Bc5 {[%emt 0:03:29]} Qc7 {[%emt 0:00:25]} 24. Rf1 {[%emt 0:05:36]} Bf7 {[%emt 0:02:46]} 25. Qd4 {[%emt 0:02:40]} Qd7 {[%emt 0:05:00][%cal Rc6d5]} 26. Bb6 {[%emt 0:01:29] A strong pair of Bishops.} Re8 {[%emt 0:00:45]} 27. a4 {[%emt 0:01:35]} Rec8 {[%emt 0:01:41]} 28. b3 {[%emt 0:02:19]} Kh8 {[%emt 0:00:33]} 29. Qd2 {[%emt 0:03:32]} Bh5 {[%emt 0:05:47]} 30. Be3 {[%emt 0:06:54]} Kh7 {[%emt 0:01:48] The position is equal.} 31. Bf4 {[%emt 0:01:56]} Re8 {[%emt 0:00:27]} 32. Kh1 {[%emt 0:03:01]} Bg4 {[%emt 0:00:41] A balanced but interesting game.  Weighted Error Value: White=0.05 (flawless) /Black=0.06 (flawless)} 1/2-1/2